[Event "Early-Titled-Tuesday-Blitz-April-02-2024"]
[Site "Chess.com"]
[Date "2024.04.02"]
[Round "8"]
[White "Journey_to_GrandMaster_YT"]
[Black "IsmaelAmadorGarcia"]
[Result "1-0"]
[WhiteElo "2573"]
[BlackElo "2351"]
[TimeControl "180+1"]
[EndTime "9:27:35 PDT"]
[Termination "Journey_to_GrandMaster_YT won on time"]

1. d4 {[%clk 0:03:00.4]} 1... Nf6 {[%clk 0:02:59.3]} 2. Nf3 {[%clk 0:03:00.7]}
2... d5 {[%clk 0:02:58.9]} 3. c4 {[%clk 0:03:00.6]} 3... e6 {[%clk 0:02:58.5]}
4. Nc3 {[%clk 0:03:00.7]} 4... Bb4 {[%clk 0:02:58.4]} 5. Bg5 {[%clk 0:02:54.5]}
5... h6 {[%clk 0:02:58.5]} 6. Bxf6 {[%clk 0:02:52.7]} 6... Qxf6 {[%clk
0:02:59.2]} 7. Qb3 {[%clk 0:02:50.8]} 7... Nc6 {[%clk 0:02:40.6]} 8. e3 {[%clk
0:02:48.9]} 8... Qg6 {[%clk 0:02:33.2]} 9. cxd5 {[%clk 0:02:47.1]} 9... exd5
{[%clk 0:02:31.3]} 10. Qxd5 {[%clk 0:02:41.3]} 10... Be6 {[%clk 0:02:30.5]} 11.
Qb5 {[%clk 0:02:40.8]} 11... O-O {[%clk 0:02:27.3]} 12. Qd3 {[%clk 0:02:34.2]}
12... Bf5 {[%clk 0:02:26]} 13. Qc4 {[%clk 0:02:30.5]} 13... b5 {[%clk
0:02:01.6]} 14. Qxb5 {[%clk 0:02:18.3]} 14... a6 {[%clk 0:01:51.9]} 15. Qc4
{[%clk 0:02:11.2]} 15... Be4 {[%clk 0:01:37.5]} 16. d5 {[%clk 0:02:03.9]} 16...
Bxc3+ {[%clk 0:01:29.5]} 17. bxc3 {[%clk 0:01:59.3]} 17... Ne7 {[%clk
0:00:54.5]} 18. Nh4 {[%clk 0:01:28.2]} 18... Qh7 {[%clk 0:00:54.2]} 19. Rd1
{[%clk 0:01:24.5]} 19... Rfd8 {[%clk 0:00:46.7]} 20. Bd3 {[%clk 0:01:19.9]}
20... Bxd3 {[%clk 0:00:31.8]} 21. Rxd3 {[%clk 0:01:15.5]} 21... Nxd5 {[%clk
0:00:19.1]} 22. O-O {[%clk 0:01:14.9]} 22... Nb6 {[%clk 0:00:15.2]} 23. Rxd8+
{[%clk 0:01:14.4]} 23... Rxd8 {[%clk 0:00:14.9]} 24. Qxc7 {[%clk 0:01:15.3]}
24... Qd3 {[%clk 0:00:09.1]} 25. Qxb6 {[%clk 0:01:13.6]} 25... Rc8 {[%clk
0:00:08.4]} 26. Qd4 {[%clk 0:01:10.4]} 26... Qe2 {[%clk 0:00:05.9]} 27. a4
{[%clk 0:01:08.5]} 27... Rc4 {[%clk 0:00:03.6]} 28. Qd8+ {[%clk 0:01:08.1]}
28... Kh7 {[%clk 0:00:04.3]} 29. Nf5 {[%clk 0:01:06.4]} 29... Rxc3 {[%clk
0:00:04]} 30. Qd4 {[%clk 0:01:03.8]} 1-0

[Event "Early-Titled-Tuesday-Blitz-April-02-2024"]
[Site "Chess.com"]
[Date "2024.04.02"]
[Round "8"]
[White "ATM622"]
[Black "ChessboArt"]
[Result "1-0"]
[WhiteElo "2507"]
[BlackElo "2290"]
[TimeControl "180+1"]
[EndTime "9:27:38 PDT"]
[Termination "ATM622 won by checkmate"]

1. d4 {[%clk 0:03:00.9]} 1... Nf6 {[%clk 0:02:54.2]} 2. c4 {[%clk 0:03:00.5]}
2... g6 {[%clk 0:02:53.6]} 3. g3 {[%clk 0:03:00.8]} 3... Bg7 {[%clk 0:02:54.1]}
4. Bg2 {[%clk 0:03:01.1]} 4... d6 {[%clk 0:02:54.7]} 5. Nf3 {[%clk 0:03:01.5]}
5... O-O {[%clk 0:02:55.3]} 6. O-O {[%clk 0:03:01.8]} 6... c6 {[%clk 0:02:55.9]}
7. Nc3 {[%clk 0:03:01.9]} 7... Qa5 {[%clk 0:02:55.7]} 8. e4 {[%clk 0:03:01.6]}
8... e5 {[%clk 0:02:55.4]} 9. d5 {[%clk 0:03:00.8]} 9... cxd5 {[%clk 0:02:56.3]}
10. cxd5 {[%clk 0:03:00.7]} 10... b5 {[%clk 0:02:56.1]} 11. Nd2 {[%clk
0:02:59.2]} 11... b4 {[%clk 0:02:56.2]} 12. Ne2 {[%clk 0:02:55.4]} 12... Nbd7
{[%clk 0:02:48]} 13. Nc4 {[%clk 0:02:53.6]} 13... Qc7 {[%clk 0:02:47.4]} 14. b3
{[%clk 0:02:53.4]} 14... a5 {[%clk 0:02:38]} 15. f3 {[%clk 0:02:48.9]} 15... Ba6
{[%clk 0:02:33.4]} 16. Ne3 {[%clk 0:02:28.2]} 16... Rac8 {[%clk 0:02:23]} 17.
Bd2 {[%clk 0:02:22]} 17... Qb6 {[%clk 0:02:15.4]} 18. Kh1 {[%clk 0:02:19.1]}
18... Rc7 {[%clk 0:02:15.6]} 19. Rc1 {[%clk 0:02:17.9]} 19... Rfc8 {[%clk
0:02:15.6]} 20. f4 {[%clk 0:02:09.2]} 20... Bd3 {[%clk 0:01:59.8]} 21. fxe5
{[%clk 0:01:22.1]} 21... Nxe5 {[%clk 0:01:58.1]} 22. Nf4 {[%clk 0:01:07.5]}
22... Nxe4 {[%clk 0:01:39.6]} 23. Rxc7 {[%clk 0:00:57]} 23... Rxc7 {[%clk
0:01:39.3]} 24. Nxd3 {[%clk 0:00:57]} 24... Nxd2 {[%clk 0:01:30.3]} 25. Qxd2
{[%clk 0:00:44.5]} 25... Nxd3 {[%clk 0:01:29.1]} 26. Nc4 {[%clk 0:00:40.7]}
26... Qd4 {[%clk 0:01:13.2]} 27. Qe2 {[%clk 0:00:34.1]} 27... Rxc4 {[%clk
0:00:26.3]} 28. Qe8+ {[%clk 0:00:33.2]} 28... Bf8 {[%clk 0:00:26]} 29. Qxf7+
{[%clk 0:00:33]} 29... Kh8 {[%clk 0:00:26.6]} 30. Qxf8# {[%clk 0:00:33.3]} 1-0

[Event "Early-Titled-Tuesday-Blitz-April-02-2024"]
[Site "Chess.com"]
[Date "2024.04.02"]
[Round "8"]
[White "Aleksandar-Topalov"]
[Black "martinmena"]
[Result "1-0"]
[WhiteElo "2337"]
[BlackElo "2169"]
[TimeControl "180+1"]
[EndTime "9:27:39 PDT"]
[Termination "Aleksandar-Topalov won on time"]

1. b3 {[%clk 0:03:00.9]} 1... e5 {[%clk 0:02:59.1]} 2. Bb2 {[%clk 0:03:00.9]}
2... Nc6 {[%clk 0:02:59.6]} 3. e3 {[%clk 0:02:59.5]} 3... Nf6 {[%clk 0:02:59.7]}
4. Bb5 {[%clk 0:02:59]} 4... Bd6 {[%clk 0:02:59.7]} 5. Na3 {[%clk 0:02:58.4]}
5... a6 {[%clk 0:02:46.3]} 6. Bxc6 {[%clk 0:02:58]} 6... dxc6 {[%clk 0:02:47.2]}
7. Nc4 {[%clk 0:02:58.2]} 7... Qe7 {[%clk 0:02:47]} 8. Ne2 {[%clk 0:02:58.1]}
8... b5 {[%clk 0:02:38.6]} 9. Nxd6+ {[%clk 0:02:57.2]} 9... cxd6 {[%clk
0:02:39.5]} 10. O-O {[%clk 0:02:57]} 10... O-O {[%clk 0:02:37.9]} 11. Ng3 {[%clk
0:02:57.1]} 11... c5 {[%clk 0:02:05.9]} 12. f4 {[%clk 0:02:56.2]} 12... exf4
{[%clk 0:01:55.2]} 13. Rxf4 {[%clk 0:02:54.7]} 13... Nd5 {[%clk 0:01:51.9]} 14.
Rf2 {[%clk 0:02:47]} 14... f6 {[%clk 0:01:39.4]} 15. a3 {[%clk 0:02:43.2]} 15...
g6 {[%clk 0:01:22.1]} 16. Qf3 {[%clk 0:02:39.9]} 16... Bb7 {[%clk 0:01:15.5]}
17. e4 {[%clk 0:02:37.3]} 17... Nc7 {[%clk 0:01:12.4]} 18. Qg4 {[%clk 0:02:17]}
18... Rae8 {[%clk 0:00:45.4]} 19. Raf1 {[%clk 0:02:14.8]} 19... Bc8 {[%clk
0:00:37.3]} 20. Qh4 {[%clk 0:02:02.1]} 20... f5 {[%clk 0:00:14]} 21. Qxe7 {[%clk
0:01:55.3]} 21... Rxe7 {[%clk 0:00:14.9]} 22. exf5 {[%clk 0:01:55]} 22... gxf5
{[%clk 0:00:15.2]} 23. Nxf5 {[%clk 0:01:51.8]} 23... Bxf5 {[%clk 0:00:15.5]} 24.
Rxf5 {[%clk 0:01:51.7]} 24... Rxf5 {[%clk 0:00:15.2]} 25. Rxf5 {[%clk
0:01:51.4]} 25... Re2 {[%clk 0:00:09]} 26. Rg5+ {[%clk 0:01:49.7]} 26... Kf8
{[%clk 0:00:09.4]} 27. Bc3 {[%clk 0:01:37.6]} 27... Ne6 {[%clk 0:00:07]} 28. Rg3
{[%clk 0:01:29.5]} 28... Kf7 {[%clk 0:00:03.3]} 29. Rf3+ {[%clk 0:01:28.2]}
29... Kg6 {[%clk 0:00:02.4]} 30. Kf1 {[%clk 0:01:26.5]} 30... Re4 {[%clk
0:00:02.1]} 31. d3 {[%clk 0:01:26.3]} 31... Rf4 {[%clk 0:00:02.6]} 32. Kf2
{[%clk 0:01:22.4]} 32... Rxf3+ {[%clk 0:00:02.9]} 33. Kxf3 {[%clk 0:01:22.6]}
33... h5 {[%clk 0:00:02.6]} 34. Ke4 {[%clk 0:01:21.2]} 34... Nc7 {[%clk
0:00:02.9]} 35. Ba5 {[%clk 0:01:19.2]} 35... d5+ {[%clk 0:00:01.9]} 36. Ke5
{[%clk 0:01:19.2]} 36... Ne8 {[%clk 0:00:01.7]} 37. Kxd5 {[%clk 0:01:18]} 1-0

[Event "Early-Titled-Tuesday-Blitz-April-02-2024"]
[Site "Chess.com"]
[Date "2024.04.02"]
[Round "8"]
[White "Escudito"]
[Black "campochess"]
[Result "1-0"]
[WhiteElo "2376"]
[BlackElo "2175"]
[TimeControl "180+1"]
[EndTime "9:27:39 PDT"]
[Termination "Escudito won on time"]

1. d4 {[%clk 0:02:59.8]} 1... d5 {[%clk 0:02:58.4]} 2. Nf3 {[%clk 0:02:59.3]}
2... e6 {[%clk 0:02:56.6]} 3. c4 {[%clk 0:02:56.9]} 3... a6 {[%clk 0:02:55.8]}
4. e3 {[%clk 0:02:50]} 4... Nf6 {[%clk 0:02:50.1]} 5. Nc3 {[%clk 0:02:48.3]}
5... c6 {[%clk 0:02:48.2]} 6. Bd3 {[%clk 0:02:41.7]} 6... Nbd7 {[%clk
0:02:47.3]} 7. O-O {[%clk 0:02:41.1]} 7... Be7 {[%clk 0:02:46.5]} 8. Qe2 {[%clk
0:02:41.5]} 8... O-O {[%clk 0:02:45.7]} 9. Rd1 {[%clk 0:02:42.1]} 9... b5 {[%clk
0:02:45.5]} 10. cxd5 {[%clk 0:02:41.5]} 10... cxd5 {[%clk 0:02:43.9]} 11. e4
{[%clk 0:02:40.9]} 11... dxe4 {[%clk 0:02:44]} 12. Nxe4 {[%clk 0:02:41.8]} 12...
Bb7 {[%clk 0:02:36.4]} 13. Bf4 {[%clk 0:02:05]} 13... Nb6 {[%clk 0:02:30.1]} 14.
Nc5 {[%clk 0:01:46.7]} 14... Bxf3 {[%clk 0:02:24.8]} 15. Qxf3 {[%clk 0:01:44.4]}
15... Nbd5 {[%clk 0:02:24.9]} 16. Be5 {[%clk 0:01:40]} 16... Re8 {[%clk
0:01:56.8]} 17. Rac1 {[%clk 0:01:33.5]} 17... Bxc5 {[%clk 0:01:53.4]} 18. dxc5
{[%clk 0:01:29.5]} 18... Rc8 {[%clk 0:01:53.2]} 19. b4 {[%clk 0:01:25.8]} 19...
Qe7 {[%clk 0:01:48.1]} 20. Bd6 {[%clk 0:01:24.9]} 20... Qa7 {[%clk 0:01:42.3]}
21. a3 {[%clk 0:01:24.1]} 21... a5 {[%clk 0:01:41.7]} 22. Bxb5 {[%clk
0:01:23.9]} 22... axb4 {[%clk 0:01:40.6]} 23. Bxe8 {[%clk 0:01:23.4]} 23... Rxe8
{[%clk 0:01:35.4]} 24. axb4 {[%clk 0:01:23]} 24... Nxb4 {[%clk 0:01:35.4]} 25.
Ra1 {[%clk 0:01:19.5]} 25... Qd7 {[%clk 0:01:23.8]} 26. Ra8 {[%clk 0:01:15.9]}
26... Nfd5 {[%clk 0:01:22]} 27. Rda1 {[%clk 0:01:01]} 27... h6 {[%clk
0:01:19.7]} 28. R8a7 {[%clk 0:00:55.4]} 1-0

[Event "Early-Titled-Tuesday-Blitz-April-02-2024"]
[Site "Chess.com"]
[Date "2024.04.02"]
[Round "8"]
[White "GOGIEFF"]
[Black "Polish_fighter3000"]
[Result "0-1"]
[WhiteElo "3016"]
[BlackElo "3150"]
[TimeControl "180+1"]
[EndTime "9:27:40 PDT"]
[Termination "Polish_fighter3000 won by resignation"]

1. c4 {[%clk 0:03:00.9]} 1... e6 {[%clk 0:02:59.7]} 2. Nc3 {[%clk 0:02:59.7]}
2... d5 {[%clk 0:03:00.2]} 3. d4 {[%clk 0:03:00]} 3... Be7 {[%clk 0:02:56.2]} 4.
cxd5 {[%clk 0:02:59.6]} 4... exd5 {[%clk 0:02:57.1]} 5. Bf4 {[%clk 0:02:59.9]}
5... c6 {[%clk 0:02:56.5]} 6. e3 {[%clk 0:03:00.1]} 6... Bf5 {[%clk 0:02:54.7]}
7. Nge2 {[%clk 0:03:00.1]} 7... Nf6 {[%clk 0:02:53.3]} 8. Ng3 {[%clk 0:02:59.8]}
8... Bg6 {[%clk 0:02:53.9]} 9. h4 {[%clk 0:03:00]} 9... h6 {[%clk 0:02:53.3]}
10. h5 {[%clk 0:03:00.1]} 10... Bh7 {[%clk 0:02:53.6]} 11. Bd3 {[%clk
0:03:00.7]} 11... Bd6 {[%clk 0:02:34.6]} 12. Bxh7 {[%clk 0:02:53.9]} 12... Bxf4
{[%clk 0:02:33.7]} 13. exf4 {[%clk 0:02:50.4]} 13... Nxh7 {[%clk 0:02:34]} 14.
Qe2+ {[%clk 0:02:35.8]} 14... Kf8 {[%clk 0:02:25]} 15. O-O-O {[%clk 0:02:28.4]}
15... Nf6 {[%clk 0:02:22.9]} 16. Nf5 {[%clk 0:02:22.2]} 16... Na6 {[%clk
0:02:17.6]} 17. g4 {[%clk 0:02:14.5]} 17... Nc7 {[%clk 0:02:14.9]} 18. g5 {[%clk
0:02:04.1]} 18... hxg5 {[%clk 0:01:54.4]} 19. fxg5 {[%clk 0:02:01.1]} 19... Ne4
{[%clk 0:01:55]} 20. Rdg1 {[%clk 0:01:28.5]} 20... Nxg5 {[%clk 0:01:45.6]} 21.
Nxg7 {[%clk 0:00:59.7]} 21... Qf6 {[%clk 0:01:43.2]} 22. Qe3 {[%clk 0:00:43.3]}
22... Nf3 {[%clk 0:01:39.1]} 23. Rg3 {[%clk 0:00:38.5]} 23... Nxd4 {[%clk
0:01:38.6]} 24. h6 {[%clk 0:00:39.1]} 24... Nce6 {[%clk 0:01:33.2]} 25. Rh5
{[%clk 0:00:31.5]} 25... Qf4 {[%clk 0:01:25.4]} 26. Kd2 {[%clk 0:00:21.7]} 26...
Rd8 {[%clk 0:01:20.3]} 27. Re5 {[%clk 0:00:19.9]} 27... Qxh6 {[%clk 0:01:03.8]}
28. Nxe6+ {[%clk 0:00:13.1]} 28... Nxe6 {[%clk 0:01:03.5]} 29. Ne2 {[%clk
0:00:09.6]} 29... Qxe3+ {[%clk 0:01:00.8]} 30. Rexe3 {[%clk 0:00:10.5]} 30...
Rh2 {[%clk 0:00:57.2]} 31. Ref3 {[%clk 0:00:10.5]} 31... Nc5 {[%clk 0:00:55.4]}
32. Ke3 {[%clk 0:00:08.3]} 32... Re8+ {[%clk 0:00:54.8]} 0-1

[Event "Early-Titled-Tuesday-Blitz-April-02-2024"]
[Site "Chess.com"]
[Date "2024.04.02"]
[Round "8"]
[White "TigrVShlyape"]
[Black "DenLaz"]
[Result "1-0"]
[WhiteElo "2927"]
[BlackElo "3098"]
[TimeControl "180+1"]
[EndTime "9:27:44 PDT"]
[Termination "TigrVShlyape won by resignation"]

1. d4 {[%clk 0:03:00.9]} 1... Nf6 {[%clk 0:02:59.1]} 2. Bf4 {[%clk 0:03:00.8]}
2... d5 {[%clk 0:02:58.8]} 3. e3 {[%clk 0:03:01.2]} 3... c5 {[%clk 0:02:59.3]}
4. c3 {[%clk 0:03:01.1]} 4... Nc6 {[%clk 0:02:59.4]} 5. Nd2 {[%clk 0:03:01.4]}
5... Bg4 {[%clk 0:02:58.9]} 6. Qb3 {[%clk 0:02:59.2]} 6... Qc8 {[%clk
0:02:59.3]} 7. a4 {[%clk 0:02:53.2]} 7... e6 {[%clk 0:02:59.1]} 8. Ngf3 {[%clk
0:02:52.8]} 8... Be7 {[%clk 0:02:59.1]} 9. h3 {[%clk 0:02:47.1]} 9... Bh5 {[%clk
0:02:58.6]} 10. Be2 {[%clk 0:02:46]} 10... O-O {[%clk 0:02:58.3]} 11. O-O {[%clk
0:02:42.8]} 11... a6 {[%clk 0:02:58.3]} 12. Qa2 {[%clk 0:02:28]} 12... Ne4
{[%clk 0:02:54.9]} 13. Rfd1 {[%clk 0:02:25.7]} 13... Nxd2 {[%clk 0:02:51.6]} 14.
Rxd2 {[%clk 0:02:24.5]} 14... c4 {[%clk 0:02:50.6]} 15. Ne5 {[%clk 0:02:17]}
15... Bxe2 {[%clk 0:02:48.5]} 16. Rxe2 {[%clk 0:02:16.6]} 16... Nxe5 {[%clk
0:02:48.3]} 17. Bxe5 {[%clk 0:02:16.7]} 17... b5 {[%clk 0:02:49]} 18. b4 {[%clk
0:02:13.6]} 18... cxb3 {[%clk 0:01:44.9]} 19. Qxb3 {[%clk 0:02:11.7]} 19... Qc6
{[%clk 0:01:41.7]} 20. axb5 {[%clk 0:02:06.1]} 20... axb5 {[%clk 0:01:41.3]} 21.
Rea2 {[%clk 0:02:04]} 21... Rxa2 {[%clk 0:01:35.2]} 22. Rxa2 {[%clk 0:02:03.5]}
22... Rc8 {[%clk 0:01:35.8]} 23. Ra5 {[%clk 0:01:59.5]} 23... Bf8 {[%clk
0:01:06]} 24. Rxb5 {[%clk 0:01:49.3]} 24... Qxc3 {[%clk 0:01:06.1]} 25. Qxc3
{[%clk 0:01:48.8]} 25... Rxc3 {[%clk 0:01:07]} 26. Rb8 {[%clk 0:01:47.4]} 26...
Rc6 {[%clk 0:01:07.4]} 27. g4 {[%clk 0:01:43.4]} 27... f6 {[%clk 0:01:06.5]} 28.
Bg3 {[%clk 0:01:43.2]} 28... Kf7 {[%clk 0:01:06.9]} 29. Rb7+ {[%clk 0:01:41.1]}
29... Kg8 {[%clk 0:01:07.3]} 30. h4 {[%clk 0:01:40.5]} 30... Bd6 {[%clk
0:01:02.9]} 31. Kg2 {[%clk 0:01:38.3]} 31... Bxg3 {[%clk 0:01:02.2]} 32. Kxg3
{[%clk 0:01:38.7]} 32... Kf8 {[%clk 0:01:02.3]} 33. g5 {[%clk 0:01:38.2]} 33...
fxg5 {[%clk 0:00:32.7]} 34. hxg5 {[%clk 0:01:38.2]} 34... Rc2 {[%clk 0:00:33.3]}
35. f3 {[%clk 0:01:34.5]} 35... Re2 {[%clk 0:00:31]} 36. Kf4 {[%clk 0:01:34.7]}
36... Re1 {[%clk 0:00:24.9]} 37. e4 {[%clk 0:01:33.9]} 37... dxe4 {[%clk
0:00:15.1]} 38. fxe4 {[%clk 0:01:33.7]} 38... h5 {[%clk 0:00:08.3]} 39. gxh6
{[%clk 0:01:31.9]} 39... gxh6 {[%clk 0:00:08.6]} 40. Ke5 {[%clk 0:01:31.9]}
40... h5 {[%clk 0:00:04.5]} 41. Rh7 {[%clk 0:01:30.1]} 41... Kg8 {[%clk
0:00:01.8]} 42. Rxh5 {[%clk 0:01:29.5]} 42... Kf7 {[%clk 0:00:02.5]} 43. Rh6
{[%clk 0:01:27.9]} 43... Re2 {[%clk 0:00:02.1]} 44. Rf6+ {[%clk 0:01:28]} 44...
Ke7 {[%clk 0:00:02]} 45. Rxe6+ {[%clk 0:01:28.2]} 45... Kd7 {[%clk 0:00:02.9]}
46. d5 {[%clk 0:01:28.2]} 1-0

[Event "Early-Titled-Tuesday-Blitz-April-02-2024"]
[Site "Chess.com"]
[Date "2024.04.02"]
[Round "8"]
[White "ReadySkate"]
[Black "Midgardsormur"]
[Result "1-0"]
[WhiteElo "2602"]
[BlackElo "2460"]
[TimeControl "180+1"]
[EndTime "9:27:45 PDT"]
[Termination "ReadySkate won on time"]

1. d4 {[%clk 0:03:00.9]} 1... Nf6 {[%clk 0:02:59.4]} 2. c4 {[%clk 0:03:00.8]}
2... g6 {[%clk 0:02:59.7]} 3. Nc3 {[%clk 0:03:01.2]} 3... Bg7 {[%clk 0:03:00.2]}
4. e4 {[%clk 0:03:01.6]} 4... d6 {[%clk 0:03:00.5]} 5. Be2 {[%clk 0:03:02.1]}
5... O-O {[%clk 0:03:00.8]} 6. Bg5 {[%clk 0:03:02.8]} 6... h6 {[%clk 0:02:59.6]}
7. Be3 {[%clk 0:03:02.7]} 7... e5 {[%clk 0:02:56]} 8. d5 {[%clk 0:03:02.8]} 8...
Na6 {[%clk 0:02:54.2]} 9. Qd2 {[%clk 0:03:00.4]} 9... Nc5 {[%clk 0:02:50.2]} 10.
f3 {[%clk 0:02:59.9]} 10... c6 {[%clk 0:02:43.6]} 11. h4 {[%clk 0:02:56]} 11...
Nh5 {[%clk 0:02:41.1]} 12. O-O-O {[%clk 0:02:53.2]} 12... Qa5 {[%clk 0:01:58.2]}
13. Kb1 {[%clk 0:02:45.2]} 13... f5 {[%clk 0:01:51.1]} 14. dxc6 {[%clk
0:02:44.2]} 14... fxe4 {[%clk 0:01:42.9]} 15. Qd5+ {[%clk 0:02:37.5]} 15... Kh7
{[%clk 0:01:32.9]} 16. Qxd6 {[%clk 0:02:36.6]} 16... Ne6 {[%clk 0:01:14.6]} 17.
cxb7 {[%clk 0:02:33.9]} 17... Bxb7 {[%clk 0:01:10.6]} 18. Qxe6 {[%clk
0:02:33.2]} 18... Rab8 {[%clk 0:01:01.1]} 19. Rd6 {[%clk 0:02:21.3]} 19... exf3
{[%clk 0:00:57.2]} 20. Qxg6+ {[%clk 0:02:20.8]} 20... Kh8 {[%clk 0:00:52]} 21.
Nxf3 {[%clk 0:02:18.5]} 21... Bxf3 {[%clk 0:00:41.5]} 22. Bxf3 {[%clk
0:02:14.9]} 22... Qxc3 {[%clk 0:00:41.3]} 23. Qc2 {[%clk 0:02:07.1]} 23... Qxe3
{[%clk 0:00:37.2]} 24. Rd3 {[%clk 0:01:57.2]} 24... Qb6 {[%clk 0:00:25.2]} 25.
Bxh5 {[%clk 0:01:54.7]} 25... e4 {[%clk 0:00:20.1]} 26. Rb3 {[%clk 0:01:54.2]}
26... Qf6 {[%clk 0:00:20.8]} 27. Re1 {[%clk 0:01:49.6]} 27... a5 {[%clk
0:00:18.2]} 28. Rxe4 {[%clk 0:01:45.8]} 28... a4 {[%clk 0:00:18.3]} 29. Rb5
{[%clk 0:01:45.5]} 29... Rxb5 {[%clk 0:00:14.5]} 30. cxb5 {[%clk 0:01:46.3]}
30... a3 {[%clk 0:00:15.4]} 31. Re1 {[%clk 0:01:43.4]} 31... axb2 {[%clk
0:00:15.4]} 32. Bf3 {[%clk 0:01:41.8]} 32... Rb8 {[%clk 0:00:14.6]} 33. h5
{[%clk 0:01:37]} 33... Qg5 {[%clk 0:00:07.6]} 34. b6 {[%clk 0:01:34]} 34... Qb5
{[%clk 0:00:06.1]} 35. b7 {[%clk 0:01:32.1]} 35... Qa5 {[%clk 0:00:06.1]} 36.
Qc8+ {[%clk 0:01:28.7]} 36... Qd8 {[%clk 0:00:01.4]} 37. Qxd8+ {[%clk
0:01:27.3]} 37... Rxd8 {[%clk 0:00:02.3]} 38. a4 {[%clk 0:01:26.6]} 38... Kg8
{[%clk 0:00:02.7]} 39. a5 {[%clk 0:01:26.5]} 39... Bc3 {[%clk 0:00:01.2]} 40. a6
{[%clk 0:01:24.8]} 1-0

[Event "Early-Titled-Tuesday-Blitz-April-02-2024"]
[Site "Chess.com"]
[Date "2024.04.02"]
[Round "8"]
[White "ChainedDowntohell"]
[Black "Saxar85"]
[Result "1-0"]
[WhiteElo "2583"]
[BlackElo "2732"]
[TimeControl "180+1"]
[EndTime "9:27:46 PDT"]
[Termination "ChainedDowntohell won on time"]

1. d4 {[%clk 0:03:00.9]} 1... Nf6 {[%clk 0:02:36.4]} 2. c4 {[%clk 0:02:59.7]}
2... e6 {[%clk 0:02:36]} 3. Nc3 {[%clk 0:02:59.8]} 3... Bb4 {[%clk 0:02:35.1]}
4. Qc2 {[%clk 0:02:59.1]} 4... d5 {[%clk 0:02:33.8]} 5. cxd5 {[%clk 0:02:55]}
5... exd5 {[%clk 0:02:33.4]} 6. Bf4 {[%clk 0:02:54.9]} 6... O-O {[%clk
0:02:31.2]} 7. e3 {[%clk 0:02:53.5]} 7... c5 {[%clk 0:02:30.6]} 8. dxc5 {[%clk
0:02:49.1]} 8... Nc6 {[%clk 0:02:20.9]} 9. Nf3 {[%clk 0:02:48.7]} 9... Qa5
{[%clk 0:02:15.1]} 10. Bd3 {[%clk 0:02:44.3]} 10... Qxc5 {[%clk 0:02:07.7]} 11.
O-O {[%clk 0:02:39.5]} 11... Bxc3 {[%clk 0:02:07.1]} 12. bxc3 {[%clk 0:02:37.9]}
12... Re8 {[%clk 0:02:05.4]} 13. Rfd1 {[%clk 0:02:26.7]} 13... Bg4 {[%clk
0:02:01.9]} 14. Rab1 {[%clk 0:02:26]} 14... Qe7 {[%clk 0:01:55.2]} 15. Qb2
{[%clk 0:02:14.6]} 15... b6 {[%clk 0:01:49.8]} 16. c4 {[%clk 0:02:11.6]} 16...
dxc4 {[%clk 0:01:11.5]} 17. Bxc4 {[%clk 0:02:10.6]} 17... Bxf3 {[%clk
0:01:04.7]} 18. gxf3 {[%clk 0:02:10.3]} 18... Ne5 {[%clk 0:01:04.5]} 19. Be2
{[%clk 0:01:59.2]} 19... Rac8 {[%clk 0:00:53.8]} 20. Kh1 {[%clk 0:01:58.9]}
20... Qe6 {[%clk 0:00:37.6]} 21. Qb3 {[%clk 0:01:39.7]} 21... Qxb3 {[%clk
0:00:32.8]} 22. axb3 {[%clk 0:01:40.2]} 22... h6 {[%clk 0:00:30]} 23. Rbc1
{[%clk 0:01:19.5]} 23... Rxc1 {[%clk 0:00:25.2]} 24. Rxc1 {[%clk 0:01:20.4]}
24... Nd5 {[%clk 0:00:24.7]} 25. Bg3 {[%clk 0:01:13.8]} 25... a5 {[%clk
0:00:20.6]} 26. f4 {[%clk 0:01:10.9]} 26... Nd7 {[%clk 0:00:17.5]} 27. Bb5
{[%clk 0:01:09.5]} 27... Re7 {[%clk 0:00:16.6]} 28. e4 {[%clk 0:00:55.9]} 28...
N5f6 {[%clk 0:00:13.5]} 29. Rc7 {[%clk 0:00:51.8]} 29... Kf8 {[%clk 0:00:08.9]}
30. e5 {[%clk 0:00:49.1]} 1-0